fUST/lending_fUST_20250725
["ID","MTS","AMOUNT","RATE_DAILY","PERIOD"]
[374792912,1753447845350,-553.19583317,0.00024452,11]
[374792914,1753447845360,-982.96,0.00024453,7]
[374792916,1753447845369,-1236.08,0.00024454,2]
[374792918,1753447845379,-168.0,0.00024454,2]
[374792920,1753447845389,-152.40414715,0.00024466,2]
[374792922,1753447845399,-169.33794126,0.00024466,2]
[374792924,1753447845410,-158.75431994,0.00024466,2]
[374792926,1753447845420,-500.0,0.00024467,2]
[374792928,1753447845430,-500.0,0.00024487,2]
[374792930,1753447845440,-4412.66436758,0.00024517,2]
[374792932,1753447845449,-500.0,0.00024525,2]
[374792934,1753447845459,-151.0,0.00024538,6]
[374792936,1753447845468,-500.0,0.00024553,2]
[374792938,1753447845478,-982.96,0.00024553,2]
[374792940,1753447845488,-152.704267,0.00024566,8]
[374792942,1753447845502,-168.0,0.00024572,2]
[374792944,1753447845512,-500.0,0.00024578,2]
[374792956,1753447845617,-823.0,0.00024578,2]
[374792958,1753447845627,-982.96,0.00024653,4]
[374792960,1753447845638,-814.64685399,0.00024657,2]
[374792962,1753447845648,-3258.58741598,0.00024657,2]
[374792964,1753447845657,-7324.48986426,0.00024657,2]
[374792967,1753447845668,-2004.87,0.00024657,2]
[374792969,1753447845679,-1417.2,0.00024657,2]
[374792971,1753447845689,-567.51,0.00024657,2]
[374792973,1753447845699,-731.58,0.00024657,2]
[374792975,1753447845709,-717.33,0.00024657,2]
[374792977,1753447845718,-460.0,0.00024657,2]
[374792979,1753447845728,-640.78,0.00024657,2]
[374792981,1753447845738,-664.92,0.00024657,2]
[374792983,1753447845748,-573.95,0.00024657,2]
[374792985,1753447845758,-593.17,0.00024657,2]
[374792987,1753447845767,-862.99,0.00024657,2]
[374792989,1753447845777,-380.0,0.00024658,2]
[374792992,1753447845787,-553.19583317,0.00024659,11]
[374792994,1753447845796,-460.0,0.00024671,2]
[374792995,1753447845806,-614.28,0.00024671,2]
[374792997,1753447845817,-152.704267,0.00024673,2]
[374792999,1753447845827,-806.34276295,0.00024681,2]
[374793002,1753447845837,-500.0,0.00024702,2]
[374793003,1753447845851,-500.0,0.00024741,2]
[374793006,1753447845860,-982.96,0.00024753,6]
[374793008,1753447845870,-500.0,0.00024761,2]
[374793010,1753447845879,-500.0,0.00024763,2]
[374793012,1753447845888,-152.704267,0.00024767,4]
[374793014,1753447845898,-150.0,0.00024773,2]
[374793016,1753447845907,-1004.284523,0.000248,2]
[374793018,1753447845917,-5861.96521756,0.000248,2]
[374793020,1753447845927,-3300.3854603,0.000248,2]
[374793022,1753447845937,-5063.98787851,0.000248,2]
[374793024,1753447845946,-500.0,0.00024813,2]
[374793026,1753447845956,-500.0,0.00024821,2]
[374793028,1753447845965,-1078.78157681,0.00024828,2]
[374793030,1753447845975,-211.0,0.0002484,12]
[374793032,1753447845984,-982.96,0.00024853,7]
[374793034,1753447845993,-151.0,0.00024856,2]
[374793036,1753447846002,-151.0,0.00024856,2]
[374793038,1753447846012,-151.0,0.00024856,2]
[374793040,1753447846021,-151.0,0.00024856,2]
[374793042,1753447846031,-151.0,0.00024856,2]
[374793044,1753447846040,-151.0,0.00024856,2]
[374793046,1753447846050,-151.0,0.00024856,2]
[374793048,1753447846059,-151.0,0.00024856,2]
[374793050,1753447846068,-151.0,0.00024856,2]
[374793052,1753447846078,-423.0,0.00024856,2]
[374793054,1753447846088,-151.0,0.00024856,2]
[374793056,1753447846100,-151.0,0.00024856,2]
[374793058,1753447846109,-151.0,0.00024856,2]
[374793060,1753447846118,-151.0,0.00024856,2]
[374793062,1753447846128,-253.52046372,0.00024856,2]
[374793064,1753447846138,-500.0,0.00024856,2]
[374793066,1753447846147,-154.09278747,0.00024856,2]
[374793068,1753447846157,-512.0,0.00024856,2]
[374793070,1753447846166,-151.0,0.00024856,2]
[374793072,1753447846176,-265.14297112,0.00024856,2]
[374793074,1753447846187,-151.0,0.00024856,2]
[374793076,1753447846198,-553.19583317,0.00024866,12]
[374793078,1753447846207,-500.0,0.0002487,2]
[374793080,1753447846216,-577.7720337,0.00024877,2]
[374793082,1753447846226,-306.0,0.00024877,2]
[374793084,1753447846235,-306.0,0.00024877,2]
[374793086,1753447846245,-2301.81267205,0.00024878,2]
[374793088,1753447846256,-920.72506882,0.0002488,2]
[374793090,1753447846266,-500.0,0.00024882,2]
[374793092,1753447846275,-225201.37183046,0.00024888,2]
[374793130,1753447846634,-460.0,0.00019178,2]
[374793132,1753447846645,-177.56813429,0.00019178,2]
[374799845,1753448592238,413.184391,0.00013699,2]
[374799903,1753449032563,-321.06130044,0.00018171,2]
[374799912,1753449032621,-1884.56894426,0.00018171,2]
[374799914,1753449032631,-300.0,0.00018603,2]
[374799916,1753449032642,-15157.2034436,0.00018604,2]
[374800496,1753449038446,-9742.7965564,0.00018604,2]
[374800498,1753449038456,-1129.43206798,0.000189,2]
[374800500,1753449038466,-1200.0,0.00019,2]
[374800502,1753449038476,-152.54994136,0.00019054,2]
[374800504,1753449038486,-500.0,0.00019073,2]
[374800506,1753449038495,-35108.89532697,0.00019078,2]
[374800509,1753449038511,-19612.85053965,0.00019078,2]
[374800511,1753449038521,-312.16666667,0.00019151,2]
[374800513,1753449038531,-460.0,0.00019178,2]
[374800515,1753449038540,-460.0,0.00019178,2]
[374800517,1753449038550,-460.0,0.00019178,2]
[374800519,1753449038559,-460.0,0.00019178,2]
[374800522,1753449038578,-460.0,0.00019178,2]
[374800524,1753449038589,-2214.36,0.00019178,2]
[374800526,1753449038600,-460.0,0.00019178,2]
[374800528,1753449038610,-460.0,0.00019178,2]
[374800530,1753449038620,-460.0,0.00019178,2]
[374800533,1753449038631,-460.0,0.00019178,2]
[374800535,1753449038641,-460.0,0.00019178,2]
[374800537,1753449038652,-460.0,0.00019178,2]
[374800539,1753449038661,-460.0,0.00019178,2]
[374800541,1753449038671,-479.5,0.00019178,2]
[374800544,1753449038681,-585.77,0.00019178,2]
[374800547,1753449038691,-492.4,0.00019178,2]
[374800549,1753449038701,-476.31,0.00019178,2]
[374800551,1753449038711,-460.0,0.00019178,2]
[374800553,1753449038720,-460.0,0.00019178,2]
[374800555,1753449038730,-460.0,0.00019178,2]
[374800557,1753449038740,-460.0,0.00019178,2]
[374800559,1753449038750,-645.77,0.00019178,2]
[374800561,1753449038760,-460.0,0.00019178,2]
[374800563,1753449038770,-714.35,0.00019178,2]
[374800565,1753449038782,-460.0,0.00019178,2]
[374800568,1753449038792,-481.84,0.00019178,2]
[374800569,1753449038801,-460.0,0.00019178,2]
[374800572,1753449038811,-460.0,0.00019178,2]
[374800574,1753449038822,-460.0,0.00019178,2]
[374800576,1753449038836,-788.93,0.00019178,2]
[374800578,1753449038845,-460.0,0.00019178,2]
[374800580,1753449038855,-677.63,0.00019178,2]
[374800582,1753449038865,-460.0,0.00019178,2]
[374800584,1753449038875,-460.0,0.00019178,2]
[374800586,1753449038884,-460.0,0.00019178,2]
[374800588,1753449038894,-488.8,0.00019178,2]
[374800590,1753449038904,-1369.41,0.00019178,2]
[374800592,1753449038915,-1720.48,0.00019178,2]
[374800594,1753449038925,-460.0,0.00019178,2]
[374800596,1753449038936,-543.2,0.00019178,2]
[374800598,1753449038945,-460.0,0.00019178,2]
[374800600,1753449038956,-460.0,0.00019178,2]
[374800602,1753449038966,-759.95,0.00019178,2]
[374800604,1753449038975,-880.03,0.00019178,2]
[374800606,1753449038985,-176.892422,0.00019178,2]
[374800608,1753449038995,-666.0,0.00019178,2]
[374800610,1753449039005,-460.0,0.00019452,2]
[374800612,1753449039014,-460.0,0.00019452,2]
[374800614,1753449039024,-460.0,0.00019452,2]
[374800616,1753449039034,-460.0,0.00019452,2]
[374800618,1753449039043,-2214.36,0.00019452,2]
[374800620,1753449039053,-460.0,0.00019452,2]
[374800622,1753449039063,-460.0,0.00019452,2]
[374800625,1753449039072,-460.0,0.00019452,2]
[374800626,1753449039082,-460.0,0.00019452,2]
[374800629,1753449039092,-460.0,0.00019452,2]
[374800631,1753449039101,-585.77,0.00019452,2]
[374800633,1753449039111,-492.4,0.00019452,2]
[374800635,1753449039121,-460.0,0.00019452,2]
[374800637,1753449039131,-296.18,0.00019452,2]
[374800639,1753449039141,-460.0,0.00019452,2]
[374800641,1753449039151,-471.02009623,0.00019452,2]
[374800643,1753449039160,-645.77,0.00019452,2]
[374800645,1753449039170,-166.74,0.00019452,2]
[374800647,1753449039180,-714.35,0.00019452,2]
[374800649,1753449039189,-460.0,0.00019452,2]
[374800651,1753449039202,-460.0,0.00019452,2]
[374800654,1753449039213,-460.0,0.00019452,2]
[374800656,1753449039223,-788.93,0.00019452,2]
[374800658,1753449039232,-242.56338648,0.00019452,2]
[374800660,1753449039246,-435.06661352,0.00019452,2]
[374800662,1753449039256,-460.0,0.00019452,2]
[374800664,1753449039266,-460.0,0.00019452,2]
[374800666,1753449039276,-460.0,0.00019452,2]
[374800668,1753449039286,-1369.41,0.00019452,2]
[374800670,1753449039296,-1720.48,0.00019452,2]
[374800673,1753449039306,-460.0,0.00019452,2]
[374800674,1753449039316,-563.15,0.00019452,2]
[374800676,1753449039325,-759.95,0.00019452,2]
[374800679,1753449039335,-880.03,0.00019452,2]
[374800681,1753449039345,-574.97723689,0.00019621,2]
[374800683,1753449039354,-460.0,0.00019726,2]
[374800685,1753449039363,-268.1817144,0.00019726,2]
[374800687,1753449039376,-191.8182856,0.00019726,2]
[374800689,1753449039386,-460.0,0.00019726,2]
[374800691,1753449039396,-460.0,0.00019726,2]
[374800693,1753449039406,-2214.36,0.00019726,2]
[374800695,1753449039415,-460.0,0.00019726,2]
[374800697,1753449039426,-460.0,0.00019726,2]
[374800699,1753449039436,-477.64,0.00019726,2]
[374800701,1753449039446,-460.0,0.00019726,2]
[374800703,1753449039456,-460.0,0.00019726,2]
[374800705,1753449039466,-585.77,0.00019726,2]
[374800707,1753449039476,-492.4,0.00019726,2]
[374800709,1753449039485,-460.0,0.00019726,2]
[374800711,1753449039495,-460.0,0.00019726,2]
[374800713,1753449039505,-645.77,0.00019726,2]
[374800715,1753449039514,-714.35,0.00019726,2]
[374800717,1753449039524,-460.0,0.00019726,2]
[374800719,1753449039534,-460.0,0.00019726,2]
[374800721,1753449039544,-460.0,0.00019726,2]
[374800723,1753449039555,-788.93,0.00019726,2]
[374800725,1753449039564,-677.63,0.00019726,2]
[374800727,1753449039574,-460.0,0.00019726,2]
[374800730,1753449039584,-1369.41,0.00019726,2]
[374800732,1753449039594,-1720.48,0.00019726,2]
[374800734,1753449039603,-460.0,0.00019726,2]
[374800736,1753449039613,-759.95,0.00019726,2]
[374800738,1753449039623,-880.03,0.00019726,2]
[374800740,1753449039634,-250.03,0.0001999,3]
[374800742,1753449039644,-750.09,0.0001999,3]
[374800744,1753449039654,-460.0,0.0002,2]
[374800746,1753449039667,-1300.0,0.0002,3]
[374800748,1753449039677,-460.0,0.0002,2]
[374800750,1753449039686,-460.0,0.0002,2]
[374800753,1753449039696,-2214.36,0.0002,2]
[374800755,1753449039707,-460.0,0.0002,2]
[374800757,1753449039717,-460.0,0.0002,2]
[374800759,1753449039726,-460.0,0.0002,2]
[374800761,1753449039736,-602.87,0.0002,2]
[374800763,1753449039746,-585.77,0.0002,2]
[374800765,1753449039756,-492.4,0.0002,2]
[374800767,1753449039766,-460.0,0.0002,2]
[374800769,1753449039776,-460.0,0.0002,2]
[374800771,1753449039785,-645.77,0.0002,2]
[374800773,1753449039795,-714.35,0.0002,2]
[374800775,1753449039804,-460.0,0.0002,2]
[374800777,1753449039814,-460.0,0.0002,2]
[374800779,1753449039824,-460.0,0.0002,2]
[374800781,1753449039838,-788.93,0.0002,2]
[374800783,1753449039848,-677.63,0.0002,2]
[374800786,1753449039858,-315.65,0.0002,2]
[374800788,1753449039868,-1369.41,0.0002,2]
[374800790,1753449039878,-1720.48,0.0002,2]
[374800792,1753449039888,-460.0,0.0002,2]
[374800794,1753449039898,-759.95,0.0002,2]
[374800796,1753449039907,-880.03,0.0002,2]
[374800798,1753449039918,-214.7599002,0.00020139,2]
[374800800,1753449039927,-160.0,0.00020139,2]
[374800802,1753449039937,-476.88235691,0.00020139,2]
[374800804,1753449039946,-215.93003454,0.00020139,2]
[374800806,1753449039956,-840.4016166,0.00020139,2]
[374800809,1753449039965,-413.184391,0.00020187,2]
[374800811,1753449039976,-250.42189344,0.00020273,2]
[374800813,1753449039986,-460.0,0.00020273,2]
[374800815,1753449039997,-460.0,0.00020273,2]
[374800817,1753449040007,-2214.36,0.00020273,2]
[374800819,1753449040017,-460.0,0.00020273,2]
[374800821,1753449040027,-460.0,0.00020273,2]
[374800823,1753449040037,-460.0,0.00020273,2]
[374800825,1753449040046,-585.77,0.00020273,2]
[374800827,1753449040056,-492.4,0.00020273,2]
[374800829,1753449040066,-460.0,0.00020273,2]
[374800831,1753449040075,-460.0,0.00020273,2]
[374800833,1753449040085,-645.77,0.00020273,2]
[374800835,1753449040095,-714.35,0.00020273,2]
[374800837,1753449040108,-460.0,0.00020273,2]
[374800840,1753449040117,-460.0,0.00020273,2]
[374800842,1753449040129,-460.0,0.00020273,2]
[374800844,1753449040139,-788.93,0.00020273,2]
[374800846,1753449040149,-677.63,0.00020273,2]
[374800848,1753449040162,-1369.41,0.00020273,2]
[374800850,1753449040171,-1720.48,0.00020273,2]
[374800852,1753449040183,-460.0,0.00020273,2]
[374800854,1753449040193,-759.95,0.00020273,2]
[374800856,1753449040202,-880.03,0.00020273,2]
[374800858,1753449040211,-420.0,0.00020285,2]
[374800860,1753449040221,-207.6,0.00020485,3]
[374800861,1753449040231,-460.0,0.00020547,2]
[374800862,1753449040241,-460.0,0.00020547,2]
[374800863,1753449040251,-2214.36,0.00020547,2]
[374800864,1753449040261,-460.0,0.00020547,2]
[374800865,1753449040271,-460.0,0.00020547,2]
[374800866,1753449040281,-460.0,0.00020547,2]
[374800867,1753449040290,-585.77,0.00020547,2]
[374800868,1753449040300,-492.4,0.00020547,2]
[374800869,1753449040310,-399.1,0.00020547,2]
[374800870,1753449040319,-460.0,0.00020547,2]
[374800871,1753449040329,-645.77,0.00020547,2]
[374800872,1753449040338,-714.35,0.00020547,2]
[374800873,1753449040349,-460.0,0.00020547,2]
[374800874,1753449040359,-460.0,0.00020547,2]
[374800875,1753449040369,-460.0,0.00020547,2]
[374800877,1753449040379,-788.93,0.00020547,2]
[374800879,1753449040388,-677.63,0.00020547,2]
[374800881,1753449040399,-1369.41,0.00020547,2]
[374800883,1753449040410,-1720.48,0.00020547,2]
[374800885,1753449040419,-460.0,0.00020547,2]
[374800887,1753449040428,-759.95,0.00020547,2]
[374800889,1753449040438,-880.03,0.00020547,2]
[374800891,1753449040448,-600.0,0.00020607,2]
[374800893,1753449040458,-160.0,0.00020631,2]
[374800895,1753449040468,-152.54994136,0.00020741,2]
[374800897,1753449040477,-3000.0,0.000208,2]
[374800899,1753449040487,-3000.0,0.0002081,2]
[374800901,1753449040497,-3000.0,0.0002082,2]
[374800903,1753449040507,-460.0,0.00020821,2]
[374800905,1753449040518,-468.12,0.00020821,2]
[374800907,1753449040528,-2214.36,0.00020821,2]
[374800909,1753449040538,-460.0,0.00020821,2]
[374800911,1753449040548,-460.0,0.00020821,2]
[374800913,1753449040557,-460.0,0.00020821,2]
[374800915,1753449040567,-585.77,0.00020821,2]
[374800917,1753449040577,-492.4,0.00020821,2]
[374800919,1753449040587,-460.0,0.00020821,2]
[374800921,1753449040596,-645.77,0.00020821,2]
[374800923,1753449040606,-714.35,0.00020821,2]
[374800925,1753449040616,-460.0,0.00020821,2]
[374800927,1753449040625,-460.0,0.00020821,2]
[374800929,1753449040635,-460.0,0.00020821,2]
[374800931,1753449040644,-788.93,0.00020821,2]
[374800933,1753449040659,-677.63,0.00020821,2]
[374800935,1753449040668,-1369.41,0.00020821,2]
[374800937,1753449040678,-1720.48,0.00020821,2]
[374800939,1753449040688,-460.0,0.00020821,2]
[374800941,1753449040697,-759.95,0.00020821,2]
[374800943,1753449040707,-880.03,0.00020821,2]
[374800945,1753449040717,-3000.0,0.0002083,2]
[374800948,1753449040727,-3000.0,0.0002084,2]
[374800949,1753449040736,-3000.0,0.0002085,2]
[374800951,1753449040746,-3000.0,0.0002086,2]
[374800953,1753449040756,-3000.0,0.0002087,2]
[374800955,1753449040766,-3000.0,0.0002088,2]
[374800958,1753449040775,-3000.0,0.0002089,2]
[374800960,1753449040786,-3000.0,0.000209,2]
[374800962,1753449040796,-3000.0,0.0002091,2]
[374800964,1753449040805,-3000.0,0.0002092,2]
[374800967,1753449040815,-3000.0,0.0002093,2]
[374800969,1753449040825,-3762.064215,0.0002094,2]
[374800971,1753449040838,-207.6,0.00020994,4]
[374800973,1753449040848,-2889.52293756,0.00020995,2]
[374800975,1753449040858,-3000.0,0.00021,2]
[374800977,1753449040867,-1360.0,0.00021,4]
[374800979,1753449040878,-3334.59772041,0.00021,2]
[374800981,1753449040887,-3000.0,0.0002101,2]
[374800983,1753449040899,-3000.0,0.0002102,2]
[374800985,1753449040909,-3000.0,0.0002103,2]
[374800987,1753449040920,-3000.0,0.0002104,2]
[374800989,1753449040930,-3000.0,0.0002105,2]
[374800991,1753449040939,-3000.0,0.0002106,2]
[374800993,1753449040951,-3000.0,0.0002107,2]
[374800995,1753449040961,-3000.0,0.0002108,2]
[374800997,1753449040970,-3000.0,0.0002109,2]
[374800999,1753449040980,-408.22454016,0.00021095,2]
[374801001,1753449040989,-2214.36,0.00021095,2]
[374801003,1753449040999,-460.0,0.00021095,2]
[374801005,1753449041009,-460.0,0.00021095,2]
[374801007,1753449041018,-460.0,0.00021095,2]
[374801009,1753449041028,-585.77,0.00021095,2]
[374801011,1753449041037,-492.4,0.00021095,2]
[374801013,1753449041048,-460.0,0.00021095,2]
[374801015,1753449041057,-645.77,0.00021095,2]
[374801017,1753449041067,-714.35,0.00021095,2]
[374801019,1753449041076,-460.0,0.00021095,2]
[374801021,1753449041086,-460.0,0.00021095,2]
[374801023,1753449041096,-460.0,0.00021095,2]
[374801025,1753449041105,-788.93,0.00021095,2]
[374801027,1753449041115,-677.63,0.00021095,2]
[374801029,1753449041124,-1369.41,0.00021095,2]
[374801031,1753449041134,-1720.48,0.00021095,2]
[374801033,1753449041143,-460.0,0.00021095,2]
[374801035,1753449041155,-759.95,0.00021095,2]
[374801051,1753449041290,-880.03,0.00021095,2]
[374801053,1753449041301,-3000.0,0.000211,2]
[374801055,1753449041310,-3000.0,0.0002111,2]
[374801057,1753449041319,-431.62,0.00021113,2]
[374801059,1753449041328,-3000.0,0.0002112,2]
[374801061,1753449041338,-3000.0,0.0002113,2]
[374801063,1753449041347,-3000.0,0.0002114,2]
[374801065,1753449041357,-3000.0,0.0002115,2]
[374801067,1753449041367,-3000.0,0.0002116,2]
[374801069,1753449041377,-3000.0,0.0002117,2]
[374801071,1753449041387,-260.0,0.00021179,2]
[374801073,1753449041397,-3000.0,0.0002118,2]
[374801075,1753449041409,-3000.0,0.0002119,2]
[374801077,1753449041418,-3000.0,0.000212,2]
[374801079,1753449041428,-3000.0,0.0002121,2]
[374801081,1753449041437,-3000.0,0.0002122,2]
[374801083,1753449041447,-3000.0,0.0002123,2]
[374801085,1753449041456,-355.01,0.00021233,2]
[374801087,1753449041466,-3000.0,0.0002124,2]
[374801089,1753449041475,-3000.0,0.0002125,2]
[374801091,1753449041484,-500.0,0.00021258,2]
[374801093,1753449041494,-500.0,0.00021258,2]
[374801095,1753449041506,-3000.0,0.0002126,2]
[374801097,1753449041515,-3000.0,0.0002127,2]
[374801099,1753449041525,-3000.0,0.0002128,2]
[374801101,1753449041534,-3000.0,0.0002129,2]
[374801103,1753449041544,-3000.0,0.000213,2]
[374801105,1753449041553,-3000.0,0.0002131,2]
[374801107,1753449041562,-3000.0,0.0002132,2]
[374801109,1753449041572,-3000.0,0.0002133,2]
[374801111,1753449041581,-3000.0,0.0002134,2]
[374801113,1753449041590,-3000.0,0.0002135,2]
[374801115,1753449041600,-500.06,0.0002136,3]
[374801117,1753449041611,-3000.0,0.0002136,2]
[374801119,1753449041620,-2214.36,0.00021369,2]
[374801121,1753449041629,-460.0,0.00021369,2]
[374801122,1753449041639,-460.0,0.00021369,2]
[374801124,1753449041649,-460.0,0.00021369,2]
[374801126,1753449041659,-585.77,0.00021369,2]
[374801129,1753449041670,-492.4,0.00021369,2]
[374801131,1753449041680,-460.0,0.00021369,2]
[374801133,1753449041690,-645.77,0.00021369,2]
[374801134,1753449041700,-714.35,0.00021369,2]
[374801136,1753449041709,-573.82,0.00021369,2]
[374801138,1753449041719,-460.0,0.00021369,2]
[374801140,1753449041728,-460.0,0.00021369,2]
[374801142,1753449041738,-788.93,0.00021369,2]
[374801144,1753449041747,-677.63,0.00021369,2]
[374801146,1753449041757,-1369.41,0.00021369,2]
[374801148,1753449041766,-1720.48,0.00021369,2]
[374801150,1753449041775,-363.5,0.00021369,2]
[374801152,1753449041784,-759.95,0.00021369,2]
[374801154,1753449041794,-880.03,0.00021369,2]
[374801156,1753449041803,-3000.0,0.0002137,2]
[374801158,1753449041814,-500.0,0.00021377,2]
[374801160,1753449041823,-500.0,0.00021377,2]
[374801163,1753449041837,-3000.0,0.0002138,2]
[374801165,1753449041847,-3000.0,0.0002139,2]
[374801167,1753449041856,-3000.0,0.000214,2]
[374801169,1753449041865,-3000.0,0.0002141,2]
[374801171,1753449041876,-3000.0,0.0002142,2]
[374801173,1753449041885,-3000.0,0.0002143,2]
[374801175,1753449041896,-3300.789547,0.0002144,2]
[374801177,1753449041907,-207.6,0.00021503,4]
[374801179,1753449041918,-2214.36,0.00021643,2]
[374801181,1753449041928,-460.0,0.00021643,2]
[374801183,1753449041937,-460.0,0.00021643,2]
[374801185,1753449041948,-460.0,0.00021643,2]
[374801187,1753449041958,-585.77,0.00021643,2]
[374801189,1753449041967,-492.4,0.00021643,2]
[374801191,1753449041977,-460.0,0.00021643,2]
[374801193,1753449041986,-645.77,0.00021643,2]
[374801195,1753449041996,-714.35,0.00021643,2]
[374801196,1753449042006,-460.0,0.00021643,2]
[374801199,1753449042016,-460.0,0.00021643,2]
[374801201,1753449042026,-788.93,0.00021643,2]
[374801203,1753449042036,-677.63,0.00021643,2]
[374801204,1753449042045,-1369.41,0.00021643,2]
[374801206,1753449042055,-1720.48,0.00021643,2]
[374801208,1753449042065,-759.95,0.00021643,2]
[374801211,1753449042075,-880.03,0.00021643,2]
[374801213,1753449042084,-407.0,0.00021674,2]
[374801214,1753449042094,-421.487,0.00021674,2]
[374801217,1753449042104,-151.30489874,0.00021698,2]
[374801218,1753449042114,-215.0738,0.00021698,2]
[374801221,1753449042124,-3801.642,0.00021698,2]
[374801223,1753449042134,-14064.86338015,0.00021698,2]
[374801225,1753449042143,-600.0,0.00021703,2]
[374801227,1753449042154,-360.0,0.00021727,2]
[374801228,1753449042163,-4091.94517612,0.00021753,2]
[374801230,1753449042173,-1003.02000038,0.00021806,2]
[374801232,1753449042182,-12622.36869388,0.00021817,3]
[374801235,1753449042192,-160.0,0.0002182,3]
[374801236,1753449042201,-312.16666667,0.0002182,3]
[374801238,1753449042211,-2214.36,0.00021917,2]
[374801240,1753449042220,-460.0,0.00021917,2]
[374801243,1753449042230,-460.0,0.00021917,2]
[374801245,1753449042240,-460.0,0.00021917,2]
[374801247,1753449042249,-585.77,0.00021917,2]
[374801249,1753449042259,-492.4,0.00021917,2]
[374801251,1753449042268,-460.0,0.00021917,2]
[374801253,1753449042278,-645.77,0.00021917,2]
[374801255,1753449042287,-714.35,0.00021917,2]
[374801256,1753449042296,-258.44214248,0.00021917,2]
[374801258,1753449042306,-460.0,0.00021917,2]
[374801260,1753449042315,-788.93,0.00021917,2]
[374801263,1753449042324,-677.63,0.00021917,2]
[374801265,1753449042334,-1369.41,0.00021917,2]
[374801267,1753449042343,-1720.48,0.00021917,2]
[374801268,1753449042352,-759.95,0.00021917,2]
[374801271,1753449042362,-880.03,0.00021917,2]
[374801272,1753449042371,-500.0,0.00021925,2]
[374801274,1753449042380,-1078.78157681,0.00021925,2]
[374801276,1753449042389,-3334.59772039,0.0002195,2]
[374801278,1753449042399,-2405.96,0.00022,7]
[374801280,1753449042408,-11013.74,0.00022,7]
[374801282,1753449042417,-3558.78,0.00022,7]
[374801284,1753449042426,-312.16666667,0.00022,7]
[374801286,1753449042436,-170.0,0.00022,2]
[374801288,1753449042446,-320.47,0.00022,2]
[374801290,1753449042455,-207.6,0.00022012,4]
[374801292,1753449042465,-587.0,0.0002212,2]
[374801294,1753449042475,-600.54749216,0.00022185,6]
[374801296,1753449042484,-2214.36,0.00022191,2]
[374801298,1753449042493,-460.0,0.00022191,2]
[374801300,1753449042503,-460.0,0.00022191,2]
[374801302,1753449042512,-460.0,0.00022191,2]
[374801304,1753449042522,-585.77,0.00022191,2]
[374801306,1753449042531,-492.4,0.00022191,2]
[374801308,1753449042541,-645.77,0.00022191,2]
[374801310,1753449042551,-460.0,0.00022191,2]
[374801312,1753449042560,-714.35,0.00022191,2]
[374801314,1753449042570,-460.0,0.00022191,2]
[374801316,1753449042580,-788.93,0.00022191,2]
[374801318,1753449042590,-677.63,0.00022191,2]
[374801320,1753449042599,-1369.41,0.00022191,2]
[374801322,1753449042609,-1720.48,0.00022191,2]
[374801324,1753449042619,-759.95,0.00022191,2]